Cogmind - Beta 13 @@@ ROGUE MODE // 2024.04.28 @ 09:54:38 Player: adenochrome Result: Destroyed by Y-54 Guardian with Gatling Laser Performance ------------- Evolutions (3) 1500 Regions Visited (7) 1400 Robots Destroyed (34) 170 Value Destroyed (1235) 1235 Prototype IDs (3) 60 Alien Tech Used (0) 0 Bonus (0) 0 TOTAL SCORE: 4365 Bonus ------- None Cogmind --------- Core Integrity 0/700 Matter 41/300 Energy 99/100 System Corruption 1% Temperature Cool (12) Movement Core (50) Location -7/Storage Parts ------- > --- POWER (1) -------- (None) > --- PROPULSION (3) --- (None) > --- UTILITY (6) ------ Advanced Targeting Computer Core Analyzer > --- WEAPON (3) ------- (None) > --- INVENTORY (5) ---- Improved Carbon-fiber Leg Improved Carbon-fiber Leg Compact Matter Pod (150) Improved Shield Generator Assault Cannon Peak State ------------ > --- POWER ------------ Enhanced Nuclear Core > --- PROPULSION ------- Improved Carbon-fiber Leg Improved Carbon-fiber Leg Improved Titanium Leg > --- UTILITY ---------- Medium Storage Unit Visual Processing Unit Advanced Targeting Computer Core Analyzer Recoil Stabilizer Hardened Medium Armor Plating > --- WEAPON ----------- Assault Cannon Advanced Assault Cannon Missile Launcher > --- INVENTORY -------- Light Deuterium Engine Improved Carbon-fiber Leg Improved Carbon-fiber Leg Improved Titanium Leg Compact Matter Pod Hardened Medium Armor Plating Improved Shield Generator Assault Cannon Assault Cannon [Rating: 46] Favorites ----------- Power Ion Engine Engine Ion Engine Power Core Enhanced Nuclear Core Propulsion Aluminum Leg Leg Aluminum Leg Wheel Wheel Utility Medium Storage Unit Device Recoil Stabilizer Storage Medium Storage Unit Processor Advanced Targeting Computer Protection Light Armor Plating Weapon Particle Gun Energy Gun Particle Gun Energy Cannon Light EM Pulse Cannon Ballistic Gun Light Assault Rifle Ballistic Cannon Assault Cannon Launcher Rocket Launcher Build | -11 -10 -10 -10 -9 -8 -7 -7 ------- Run | Yrd Mat Min Exi Min Mat Fac Sto Slots Evolved 6 | . . . . . 4 2 . Power . | . . . . . . . . Propulsion 1 | . . . . . 1 . . Utility 4 | . . . . . 2 2 . Weapon 1 | . . . . . 1 . . Parts Attached 59 | 6 8 12 . . 15 18 . Power 6 | 1 1 3 . . . 1 . Engine 5 | 1 1 3 . . . . . Core 1 | . . . . . . 1 . Reactor . | . . . . . . . . Propulsion 20 | 2 3 3 . . 4 8 . Treads . | . . . . . . . . Leg 18 | . 3 3 . . 4 8 . Wheel 2 | 2 . . . . . . . Hover . | . . . . . . . . Flight . | . . . . . . . . Utility 19 | 1 2 3 . . 5 8 . Device 7 | . 1 1 . . 2 3 . Storage 2 | 1 . 1 . . . . . Processor 5 | . . . . . 2 3 . Hackware . | . . . . . . . . Protection 5 | . 1 1 . . 1 2 . Artifact . | . . . . . . . . Weapon 14 | 2 2 3 . . 6 1 . Energy Gun 4 | 1 . 2 . . 1 . . Energy Cannon 2 | . . . . . 2 . . Ballistic Gun 3 | 1 2 . . . . . . Ballistic Cannon 3 | . . . . . 2 1 . Launcher 2 | . . 1 . . 1 . . Special Weapon . | . . . . . . . . Impact Weapon . | . . . . . . . . Slashing Weapon . | . . . . . . . . Piercing Weapon . | . . . . . . . . Special Melee Weapon . | . . . . . . . . Unidentified Prototypes 1 | . . . . . . 1 . Parts Lost 14 | . 3 2 . . . . 9 Power 2 | . . 1 . . . . 1 Propulsion 4 | . 1 . . . . . 3 Utility 3 | . 1 . . . . . 2 Weapon 5 | . 1 1 . . . . 3 Highest Loss Streak 9 | . 1 1 . . . . 9 To Critical Strikes . | . . . . . . . . Average Slot Usage (%) 97 | . 92 99 100 100 97 98 60 Engine 10 | . 14 13 14 14 9 . . Core 1 | . . . . . . 6 3 Leg 25 | . 14 28 28 28 26 23 12 Wheel 1 | . 11 . . . . . . Device 2 | . 7 . . . 4 4 3 Storage 11 | . 14 14 14 14 9 7 4 Processor 6 | . . . . . 11 23 19 Protection 11 | . 4 14 14 14 9 7 3 Energy Gun 11 | . 3 19 14 14 6 . . Ballistic Gun 4 | . 21 7 . . . . . Ballistic Cannon 3 | . . . . . 3 15 8 Launcher 6 | . . 1 14 14 9 7 3 Naked Turns . | . . . . . . . . Heaviest Build 44 | 13 15 25 25 25 34 44 44 Greatest Support 58 | 26 26 20 20 20 45 58 58 Greatest Overweight (x) 3 | . 1 1 1 1 3 . . Average Overweight (x) . | . . . 1 1 . . . Largest Inventory Capacity 10 | 8 8 10 10 10 10 10 10 Average Capacity 9 | 7 8 9 10 10 10 10 7 Most Carried 10 | 2 8 10 10 10 10 10 10 Average Carried 9 | 1 5 9 10 10 9 9 7 Final Capacity 10 | 8 8 10 10 10 10 10 5 Final Carried 10 | 2 8 10 10 10 10 10 5 Class Distribution -------------------- 61% | Scavenger-Mutant 25% | Gunner 8% | Mutant 4% | Scavenger-Tank Dominant Class ---------------- Mutant | -10/Materials Scavenger-Mutant | -10/Mines Scavenger-Mutant | -10/Exiles Scavenger-Mutant | -9/Mines Gunner | -8/Materials Gunner | -7/Factory Mutant | -7/Storage Resources | -11 -10 -10 -10 -9 -8 -7 -7 ----------- Run | Yrd Mat Min Exi Min Mat Fac Sto Matter Collected 1047 | 204 181 168 . . 208 276 10 Remotely 64 | . . . . . . 64 . Salvage Created 1040 | . 207 176 . . 208 307 142 Parts 67 | . 16 12 . . 12 21 6 Haulers Intercepted . | . . . . . . . . Recyclers Shooed 1 | . . 1 . . . . . Parts Field Recycled . | . . . . . . . . Retrieved Matter . | . . . . . . . . Parts Self-Destructed . | . . . . . . . . Prevented . | . . . . . . . . Kills | -11 -10 -10 -10 -9 -8 -7 -7 ------- Run | Yrd Mat Min Exi Min Mat Fac Sto Combat Hostiles Destroyed 33 | . 7 5 . . 7 10 4 Guns 11 | . 6 4 . . 1 . . Cannons 10 | . . . . . 2 7 1 AOE 12 | . 1 1 . . 4 3 3 Classes Destroyed 8 | . 2 2 . . 1 2 1 Recycler 1 | . . 1 . . . . . Watcher 1 | . . . . . . 1 . Swarmer 9 | . 3 . . . 3 3 . Grunt 15 | . 4 4 . . . 4 3 Duelist 1 | . . . . . . . 1 Sentry 6 | . . . . . 4 2 . Hunter 1 | . . . . . . 1 . Assembled 1 | . . 1 . . . . . Best Kill Streak 3 | . 3 1 . . 3 3 3 Combat Bots Only 3 | . 3 1 . . 3 3 3 Max Kills in Single Turn 3 | . 1 1 . . 3 3 3 Gunslinging . | . . . . . . . . Exploded 3 | . 1 1 . . 3 3 3 Melee . | . . . . . . . . Uniques/NPCs Destroyed . | . . . . . . . . Combat | -11 -10 -10 -10 -9 -8 -7 -7 -------- Run | Yrd Mat Min Exi Min Mat Fac Sto Hostile Shots Fired 400 | . 46 33 . . 24 61 236 Missed 125 | . 16 12 . . 10 26 61 Damage Taken 3205 | . 383 312 . . 198 441 1871 Core 907 | . 73 76 . . 54 101 603 Absorbed by Shields . | . . . . . . . . Core Remaining (%) 76 | 100 . . . 40 90 . . Volleys Fired 121 | . 38 31 . . 15 22 15 Largest 3 | . 2 2 . . 2 2 3 Hottest 130 | . 60 85 . . 130 92 128 Shots Fired 199 | . 53 48 . . 28 42 28 Gun 104 | . 53 42 . . 9 . . Cannon 83 | . . . . . 16 40 27 Launcher 12 | . . 6 . . 3 2 1 Special . | . . . . . . . . Kinetic 138 | . 49 22 . . . 40 27 Thermal 29 | . . 20 . . 9 . . Explosive 12 | . . 6 . . 3 2 1 Electromagnetic 20 | . 4 . . . 16 . . Robot Hit Streak 15 | . 6 5 . . 14 15 9 Robot Miss Streak 6 | . 4 6 . . 3 2 3 Penetration Max . | . . . . . . . . Secondary Targets 2 | . 1 1 . . . . . Max Gunslinging Chain 1 | . 1 1 . . . . . Shots Hit Robots 127 | . 34 20 . . 22 31 20 Core Hits 65 | . 15 10 . . 10 18 12 Critical Kills 1 | . 1 . . . . . . Critical Parts Destroyed . | . . . . . . . . Critical Strikes 4 | . 1 . . . 1 . 2 Burn 1 | . . . . . 1 . . Destroy 1 | . 1 . . . . . . Blast 2 | . . . . . . . 2 Melee Attacks . | . . . . . . . . Impact . | . . . . . . . . Slashing . | . . . . . . . . Piercing . | . . . . . . . . Sneak Attacks . | . . . . . . . . Combat Hostiles . | . . . . . . . . Follow-up Attacks . | . . . . . . . . Damage Inflicted 2948 | . 292 292 . . 692 849 823 Guns 598 | . 269 220 . . 109 . . Cannons 1435 | . . . . . 249 685 501 Explosions 904 | . 23 72 . . 330 164 315 Melee . | . . . . . . . . Ramming 11 | . . . . . 4 . 7 Kinetic 1510 | . 248 76 . . . 685 501 Thermal 329 | . 23 144 . . 162 . . Explosive 828 | . . 72 . . 277 164 315 Electromagnetic 270 | . 21 . . . 249 . . Impact . | . . . . . . . . Slashing . | . . . . . . . . Piercing . | . . . . . . . . Highest Corruption 2 | . . . . . 2 1 1 Average Corruption 1 | . . . . . 2 1 1 Corruption Purged . | . . . . . . . . Corruption Blocked . | . . . . . . . . Effects 1 | . . . . . . . 1 Alerts 1 | . . . . . . . 1 Overload Shots . | . . . . . . . . Overflow Damage 97 | . . 24 . . 20 47 6 Projectiles 48 | . . . . . . 47 1 Explosions 49 | . . 24 . . 20 . 5 Melee . | . . . . . . . . Knockbacks 20 | . . . . . . 12 8 Impact . | . . . . . . . . Kinetic 17 | . . . . . . 11 6 Secondary 3 | . . . . . . 1 2 Self-Inflicted Damage 144 | . 38 48 . . . . 58 Shots 3 | . 1 1 . . . . 1 Rammed 3 | . . . . . . . 3 Targets Rammed 4 | . . . . . 1 . 3 Kicked 1 | . . . . . 1 . . Crushed . | . . . . . . . . Highest Temperature 515 | . 32 318 . . 175 216 515 Average Temperature 122 | . 12 170 . . 59 74 205 Received Heat Transfer 1374 | . 171 150 . . 81 174 798 Effects 8 | . . . . . . . 8 Energy Bleed 1 | . . . . . . . 1 Interference 5 | . . . . . . . 5 Short Circuit 1 | . . . . . . . 1 Damage (minor) 1 | . . . . . . . 1 Siege Activations . | . . . . . . . . Robots Corrupted . | . . . . . . . . Combat Hostiles . | . . . . . . . . Parts Fried 3 | . . . . . 3 . . Impact Corruptions . | . . . . . . . . Robots Melted . | . . . . . . . . Combat Hostiles . | . . . . . . . . Parts Melted 2 | . . 1 . . 1 . . Heat Transferred 716 | . 50 333 . . 333 . . Parts Sabotaged . | . . . . . . . . Parts Stolen . | . . . . . . . . Parts Stripped . | . . . . . . . . Power Chain Reactions 2 | . 1 . . . 1 . . Alert | -11 -10 -10 -10 -9 -8 -7 -7 ------- Run | Yrd Mat Min Exi Min Mat Fac Sto Peak Influence 422 | . 196 116 . . 293 208 422 Initial 94 | . . 76 . . . . 94 Average 67 | . 107 24 . . 108 76 218 Maximum Alert Level 2 | . . . . . 1 1 2 Low Security (%) 95 | 100 100 100 . 100 90 98 54 Level 1 4 | . . . . . 9 1 39 Level 2 . | . . . . . . . 5 Level 3 . | . . . . . . . . Level 4 . | . . . . . . . . Level 5 . | . . . . . . . . High Security . | . . . . . . . . Max Security . | . . . . . . . . Squads Dispatched 9 | . 3 . . . 1 3 2 Investigation 3 | . 2 . . . . . 1 Extermination . | . . . . . . . . Reinforcement 3 | . 1 . . . 1 . 1 Assault . | . . . . . . . . Garrison 3 | . . . . . . 3 . Intercept . | . . . . . . . . Searches Triggered . | . . . . . . . . Construction Impeded . | . . . . . . . . Haulers Reinforced . | . . . . . . . . Active Scanning Responses . | . . . . . . . . Cargo Convoy Interrupts . | . . . . . . . . Stealth | -11 -10 -10 -10 -9 -8 -7 -7 --------- Run | Yrd Mat Min Exi Min Mat Fac Sto Distress Signals 3 | . 1 . . . . 1 1 Communications Jammed . | . . . . . . . . Distress Signals . | . . . . . . . . Times Spotted 59 | . 12 5 . . 9 11 22 Peak Tracking Total 13 | . 3 2 . . 3 3 13 Tactical Retreats 4 | . . . . . . . 4 Traps | -11 -10 -10 -10 -9 -8 -7 -7 ------- Run | Yrd Mat Min Exi Min Mat Fac Sto Traps Triggered 2 | . . . . . 1 1 . Indirectly . | . . . . . . . . Trap Hack Attempts . | . . . . . . . . Triggered . | . . . . . . . . Disarmed . | . . . . . . . . Reprogrammed . | . . . . . . . . Reused . | . . . . . . . . Traps Extracted . | . . . . . . . . Installed . | . . . . . . . . Triggered . | . . . . . . . . Machines | -11 -10 -10 -10 -9 -8 -7 -7 ---------- Run | Yrd Mat Min Exi Min Mat Fac Sto Machines Disabled 3 | . . . . . 1 . 2 Max in Single Turn 1 | . . . . . 1 . 1 Machines Repaired . | . . . . . . . . Machines Dismantled . | . . . . . . . . Machines Sabotaged . | . . . . . . . . Overloaded Fab Kills . | . . . . . . . . Hacking | -11 -10 -10 -10 -9 -8 -7 -7 --------- Run | Yrd Mat Min Exi Min Mat Fac Sto Machines Accessed 17 | . 6 . 4 . 4 2 1 Terminals 9 | . 5 . . . 2 1 1 Fabricators 1 | . . . . . . 1 . Repair Stations . | . . . . . . . . Recycling Units 3 | . 1 . . . 2 . . Scanalyzers . | . . . . . . . . Garrison Access . | . . . . . . . . Total Hacks 31 | . 13 . 4 . 8 3 3 Successful 17 | . 6 . 4 . 5 2 . Failed 14 | . 7 . . . 3 1 3 Catastrophic 4 | . 2 . . . 1 1 . Database Lockouts . | . . . . . . . . Manual 11 | . 1 . . . 6 1 3 Terminals 22 | . 11 . . . 6 2 3 Fabricators 1 | . . . . . . 1 . Repair Stations . | . . . . . . . . Recycling Units 4 | . 2 . . . 2 . . Scanalyzers . | . . . . . . . . Garrison Access . | . . . . . . . . Terminal Hacks 13 | . 5 . 4 . 3 1 . Record 4 | . . . 4 . . . . Robot Analysis 2 | . 2 . . . . . . Prototype ID Bank 1 | . 1 . . . . . . Alert Level 3 | . 1 . . . 2 . . Unreport Threat 1 | . . . . . 1 . . Zone Layout 2 | . 1 . . . . 1 . Fabricator Hacks 1 | . . . . . . 1 . Network Status 1 | . . . . . . 1 . Repair Station Hacks . | . . . . . . . . Recycling Unit Hacks 3 | . 1 . . . 2 . . Report Inventory 3 | . 1 . . . 2 . . Scanalyzer . | . . . . . . . . Garrison Access Hacks . | . . . . . . . . Unauthorized Hacks . | . . . . . . . . Terminals . | . . . . . . . . Fabricators . | . . . . . . . . Repair Stations . | . . . . . . . . Recycling Units . | . . . . . . . . Scanalyzers . | . . . . . . . . Garrison Access . | . . . . . . . . Data Cores Recovered . | . . . . . . . . Used . | . . . . . . . . Hacking Detections 9 | . 5 . . . 2 1 1 Full Trace Events 3 | . 2 . . . . . 1 Feedback Events . | . . . . . . . . Feedback Blocked . | . . . . . . . . Robot Schematics Acquired . | . . . . . . . . Robots Built . | . . . . . . . . Authchips . | . . . . . . . . Time . | . . . . . . . . Total Robot Build Rating . | . . . . . . . . Part Schematics Acquired . | . . . . . . . . Parts Built . | . . . . . . . . Authchips . | . . . . . . . . Time . | . . . . . . . . Total Part Build Rating . | . . . . . . . . Parts Repaired . | . . . . . . . . Time . | . . . . . . . . Parts Recycled . | . . . . . . . . Recycled Matter . | . . . . . . . . Retrieved Matter . | . . . . . . . . Retrieved Components . | . . . . . . . . Parts Scanalyzed . | . . . . . . . . Part Schematics Acquired . | . . . . . . . . Parts Damaged . | . . . . . . . . Bothacking | -11 -10 -10 -10 -9 -8 -7 -7 ------------ Run | Yrd Mat Min Exi Min Mat Fac Sto Used RIF Installer . | . . . . . . . . Robots Hacked . | . . . . . . . . Non-combat . | . . . . . . . . Combat . | . . . . . . . . Robot Hacks Applied . | . . . . . . . . Relay Couplers Released . | . . . . . . . . Fabnet Peak Effective % . | . . . . . . . . Robots Rewired . | . . . . . . . . Allies Hacked . | . . . . . . . . Hacks Repelled . | . . . . . . . . Allies | -11 -10 -10 -10 -9 -8 -7 -7 -------- Run | Yrd Mat Min Exi Min Mat Fac Sto Total Allies . | . . . . . . . . Largest Group . | . . . . . . . . Highest-Rated Group . | . . . . . . . . Highest-Rated Ally . | . . . . . . . . Total Orders . | . . . . . . . . Ally Attacks . | . . . . . . . . Total Damage . | . . . . . . . . Kills . | . . . . . . . . Allies Corrupted . | . . . . . . . . Allies Melted . | . . . . . . . . Intel | -11 -10 -10 -10 -9 -8 -7 -7 ------- Run | Yrd Mat Min Exi Min Mat Fac Sto Robot Analysis Total 2 | . 2 . . . . . . Derelict Logs Recovered 2 | . . 2 . . . . . Drone Launches . | . . . . . . . . Drone Recoveries . | . . . . . . . . Exploration | -11 -10 -10 -10 -9 -8 -7 -7 ------------- Run | Yrd Mat Min Exi Min Mat Fac Sto Turns Passed 4251 | 52 365 1482 932 59 524 649 188 Spaces Moved 2513 | 46 241 734 491 32 353 424 192 Core 143 | 1 . . . . . . 142 Treads . | . . . . . . . . Legs 2210 | . 126 734 491 32 353 424 50 Wheels 160 | 45 115 . . . . . . Hover . | . . . . . . . . Flight . | . . . . . . . . Fastest Speed 50 | 50 90 120 190 190 120 120 50 Average Speed 144 | 89 106 171 190 190 124 121 69 Slowest Speed 330 | 100 190 190 190 190 330 126 130 Overloaded Moves . | . . . . . . . . Propulsion Burnouts . | . . . . . . . . Robots Hopped . | . . . . . . . . Cave-ins Triggered . | . . . . . . . . Exploration Rate (%) 40 | 3 42 98 88 7 34 9 45 Regions Visited 7 Branch Regions 4 Pre-discovered Areas 1 | . . 1 . . . . . Known Exits Taken . | . . . . . . . . Unknown Exits Taken 7 | 1 1 1 1 1 1 1 . Scrap Searched . | . . . . . . . . Spaces Dug . | . . . . . . . . Terrain Destroyed 88 | . 3 33 . . 29 11 12 Melee . | . . . . . . . . Projectile 7 | . . . . . . 2 5 AOE 81 | . 3 33 . . 29 9 7 Terrain Rammed . | . . . . . . . . Walls Destroyed . | . . . . . . . . Machines Disabled . | . . . . . . . . Actions | -11 -10 -10 -10 -9 -8 -7 -7 --------- Run | Yrd Mat Min Exi Min Mat Fac Sto Total 2946 | 53 305 914 490 31 412 522 219 Wait 153 | . 5 119 . . 1 21 7 Move 2506 | 45 240 733 490 31 352 423 192 Hop . | . . . . . . . . Pick Up 43 | 2 9 7 . . 11 14 . Fast Attach 26 | 6 4 2 . . 9 5 . Attach 10 | . 2 2 . . 5 1 . Detach 1 | . . 1 . . . . . Swap 23 | . 2 8 . . 1 12 . Drop 59 | . 5 11 . . 17 24 2 Fire 121 | . 38 31 . . 15 22 15 Melee . | . . . . . . . . Ram 3 | . . . . . . . 3 Kick 1 | . . . . . 1 . . Crush . | . . . . . . . . Escape Stasis . | . . . . . . . . Rewire . | . . . . . . . . Trap . | . . . . . . . . Miscellaneous . | . . . . . . . . Route ------- -11/Scrapyard -10/Materials -10/Mines (discovered 3 exits: [*Mat x2] / *Exi) -10/Exiles -9/Mines -8/Materials -7/Factory -7/Storage History --------- Turn | Location | Event 14 | -11/Scrapyard | Discovered new exit (range 15) 53 | -11/Scrapyard | Entered Materials 322 | -10/Materials | Discovered new exit (range 9) 418 | -10/Materials | Entered Mines 463 | -10/Mines | Received a Rocket Launcher from a helpful Derelict 472 | -10/Mines | Learned 2 Materials zone layouts 553 | -10/Mines | Discovered new exit (range 11) 580 | -10/Mines | Build established: Scavenger-Mutant 637 | -10/Mines | Discovered new exit (range 6) 1663 | -10/Mines | Excavation squad dispatched 1663 | -10/Mines | A large section of the Mines collapsed 1771 | -10/Mines | Core integrity fell below 50% 1890 | -10/Mines | Deemed a non-threat by the Exiles lab entrance 1892 | -10/Mines | Discovered new exit (range 5) 1900 | -10/Mines | Entered Exiles 1900 | -10/Exiles | Found Exiles lab abandoned 2579 | -10/Exiles | Discovered new exit (range 14) 2832 | -10/Exiles | Entered Mines 2865 | -9/Mines | Discovered new exit (range 5) 2886 | -9/Mines | Met a Derelict bent on vengeance 2891 | -9/Mines | Entered Materials 2891 | -8/Materials | Evolved 4 slots: Propulsion x1, Utility x2, Weapon x1 3186 | -8/Materials | Discovered new exit (range 10) 3368 | -8/Materials | Build established: Gunner 3415 | -8/Materials | Entered Factory 3415 | -7/Factory | Evolved 2 slots: Utility x2 3682 | -7/Factory | Discovered new exit (range 10) 3762 | -7/Factory | Garrison activated, responded to threat 4064 | -7/Factory | Entered Storage 4175 | -7/Storage | Core integrity fell below 50% 4203 | -7/Storage | Lost 9 parts (1p3n2u3w) 4205 | -7/Storage | Core integrity fell below 20% 4252 | -7/Storage | Destroyed by Y-54 Guardian with Gatling Laser Last Messages --------------- 04168_ Overheating: System interference. 04168_ Visual Processing Unit temporarily disabled. 04169_ Overheating: Energy bleed (-20). 04170_ Broken Adv. Assault Cannon destroyed. 04170_ Critical hit (Burn: +37). 04172_ Imp. Titanium Leg destroyed. 04173_ R-06 Scavenger collects Aluminum Leg. 04173_ Discarded Visual Processing Unit. 04174_ Dropped Med. Storage Unit. 04176_ R-06 Scavenger collects Assault Cannon. 04177_ K-01 Serf collects debris. 04203_ Slammed into K-01 Serf. 04207_ K-01 Serf collects debris. 04227_ Connecting with Terminal... 04227_ Current location identified: Storage 04227_ ALERT: Suspicious activity at Terminal S004. Dispatching Investigation squad. 04227_ W-25 Informer sends out distress signal. 04232_ Connecting with Door Terminal... 04245_ Slammed into K-01 Serf. Map ----- +----------------------------------------------------+ | ???????????????????????????????? | | ???????????????????????????????? | | ???????????????????????????????? | | ???????????????????????????????? | | ??????????????????????????###??? | | ?????????????????????????? ??? | | ??????????????????????????!]!??? | | ????????????????#????????? ??? | | ????????????????# ###?????#/#??? | | ????????????????# ????# #### | | ????????????????# ????# | | ????????????????# /// ???# | | ????????????????# /// #### | | ????????????????# // + | | ????????????????# # ##+#### | | ????????????????#####+## # #?? | | ????????????????????# # #?? | | ????????????????????# # #?? | | ?????????????????#### #!!!#?? | | ?????????????????? #!! #?? | | ?????????????????? #!! ### | | ?????????????????# """ # ## | | ?????#???????????# """ ##+### | | ?????# ??????????# """ #?# | | ?????# ########+## #?## | | ?????# @ Y #??? | | ?????#+######## ###+#### #??? | | ??????????????# #?????##+##+###? | | ??????????????# #?????# #? | | ??????????????# #?????#!! = #? | | ??????????????# #?????#!! #? | | ??????????????# #?????#! #? | | ??????????????# #?????# #? | | ?????????????##+####### #? | | ?????????????# ## """" #? | | ?????????????# ## """" #? | | ?????????????# """ ## """" #? | | ?????????????# """ ## """" #? | | ?????????????# """ |## #? | | ?????????????# #######+### | | ?????????????# """ #?# | | ?????????????# """ #?# | | ?????????????# """ #?# ###### | | ?????????????# #?# #????? | | ?????????????# ### ##???? | | ??????????"####/####### #???? | | ??????????" "" #???? | | ??????????" T" +???? | | ??????????"#T##/####### #???? | | ???????????##? ????######???? | +----------------------------------------------------+ Best States ------------- Heat Dissipation 45 Energy Generation 17 Energy Capacity 300 Matter Stores 300 Matter Capacity 300 Sight Range 18 Robot Scan Range 14 Terrain Scan Density 10 Armor Coverage 225 Evasion (%) 55 Targeting Accuracy 24 Core Analysis 6 Recoil Reduction 4 Item Schematics ----------------- None Robot Schematics ------------------ None Fabricated ------------ Nothing Alien Tech Used ----------------- None Achievements -------------- root@ Challenges ------------ None Game ------ Seed ParticleHardlightConstruct Manual? 0 Play Time 00:40:46 Cumulative 15.9 hours Start 2024.04.24 @ 18:26:53 End 2024.04.28 @ 09:54:38 Sessions 3 Manual Loads 0 Difficulty Rogue Special Mode None Game No. 23 Rogue 23 Adventurer 0 Explorer 0 Win Type - Total 0 Types 0/0/0/0/0/0/0/0/0 Lore% 20 Gallery% 21 Achievement% 23 Wizard Run 0 Options --------- Layout 0 ASCII 0 Keyboard 0 Movement Mouse Keybinds 0 Fullscreen 1 Font 18/SmallcapsGlow Map View 38x25 Zoom Use 5% Tactical HUD 1 Map Filters NONE Filters NONE Steam 1 RUN: 2238b17d-68f4-4d19-bfc6-e9085e2b2f57